bitfinex-derivatives/quotes_SOLF0:USTF0_20250823
["timestamp","ask_amount","ask_price","bid_price","bid_amount"]
[1755974984971,122.10582597,204.25,204.24,4.61682405]
[1755974986873,3.22582597,204.25,204.24,4.61682405]
[1755974987170,122.10582597,204.25,204.24,4.61682405]
[1755974991375,118.88,204.25,204.24,4.61682405]
[1755974991573,122.10582597,204.25,204.24,4.61682405]
[1755974993977,122.10582597,204.25,204.2,7.4786]
[1755974994170,122.10582597,204.25,204.21,7.19749003]
[1755974994475,122.10582597,204.25,204.22,4.61749003]
[1755974994665,122.10582597,204.25,204.23,4.61749003]
[1755974994865,122.10582597,204.25,204.24,4.61749003]
[1755974995478,3.22582597,204.25,204.24,4.61749003]
[1755974995673,122.08582597,204.25,204.24,4.61749003]
[1755975000475,122.08582597,204.25,204.24,4.61789872]
[1755975002880,122.08582597,204.25,204.24,4.61872756]
[1755975003178,122.08582597,204.25,204.24,4.61872654]
[1755975003577,122.08582597,204.25,204.21,2.58]
[1755975003772,122.08582597,204.25,204.22,4.61988031]
[1755975004079,122.08582597,204.25,204.23,4.61988031]
[1755975004280,122.08582597,204.25,204.24,4.62177695]
[1755975011286,3.22582597,204.25,204.24,4.62177695]
[1755975011489,122.08582597,204.25,204.24,4.62177695]
[1755975011985,3.22582597,204.25,204.24,4.62177695]
[1755975012187,122.08582597,204.25,204.24,4.62177695]
[1755975012582,122.08582597,204.25,204.24,4.62554195]
[1755975015590,3.22582597,204.21,204.18,64.63512254]
[1755975015792,3.22582597,204.19,204.18,64.63512254]
[1755975022788,3.22582597,204.19,204.18,67.28512254]
[1755975024995,3.22582597,204.19,204.18,64.63512254]
[1755975025197,3.22582597,204.19,204.15,2.65]
[1755975025495,3.22582597,204.16,204.1,3.22582597]
[1755975025698,3.22582597,204.16,204.11,4.04999387]
[1755975025896,3.22582597,204.16,204.13,2.65]
[1755975026093,3.22582597,204.16,204.13,7.5502]
[1755975026298,118.86,204.17,204.11,2.65]
[1755975026496,118.86,204.17,204.13,2.65]
[1755975026895,118.86,204.17,204.12,4.9006]
[1755975027096,118.86,204.17,204.15,2.65]
[1755975027498,118.86,204.17,204.16,4.52454975]
[1755975031000,3.22582597,204.18,204.16,4.52454975]
[1755975031208,3.22582597,204.18,204.17,4.52454975]
[1755975032308,3.22582597,204.18,204.17,4.5224201]
[1755975035717,3.22582597,204.18,204.17,4.49871873]
[1755975036720,122.08582597,204.18,204.17,7.11871873]
[1755975037216,122.08582597,204.18,204.17,4.49871873]
[1755975042323,122.08582597,204.18,204.17,4.49966318]
[1755975049628,122.08582597,204.18,204.17,4.50117865]
[1755975052028,122.08582597,204.18,204.15,2.62]
[1755975052329,122.08582597,204.18,204.16,4.50196807]
[1755975052530,122.08582597,204.18,204.17,4.50196807]
[1755975053231,122.08582597,204.18,204.17,4.50288453]
[1755975061232,122.08582597,204.18,204.12,7.5206]
[1755975061437,3.22582597,204.16,204.13,8.54521785]
[1755975061633,3.22582597,204.16,204.14,7.13199516]
[1755975061933,3.22582597,204.16,204.15,4.51199516]
[1755975064138,3.22582597,204.16,204.15,4.52458828]
[1755975064837,4.8985,204.21,204.16,2.78]
[1755975065036,118.84,204.19,204.17,7.30458828]
[1755975065234,122.06582597,204.18,204.13,2.78]
[1755975065429,122.06582597,204.18,204.15,2.78]
[1755975065633,118.84,204.18,204.16,4.5243004]
[1755975065837,118.84,204.18,204.17,4.5243004]
[1755975066632,123.7393,204.18,204.17,4.5243004]
[1755975066939,126.96512597,204.18,204.17,4.5243004]
[1755975067938,4.8999,204.16,204.11,2.78]
[1755975068140,3.22582597,204.14,204.12,11.3443617]
[1755975068336,3.22582597,204.14,204.1,64.00753531]
[1755975068538,3.22582597,204.14,204.13,2.78]
[1755975068734,118.84,204.15,204.14,2.78]
[1755975071644,3.22582597,204.16,204.14,2.78]
[1755975071843,118.84,204.15,204.14,2.78]
[1755975072650,118.84,204.15,204.11,4.9008]
[1755975072845,118.84,204.15,204.12,2.78]
[1755975079254,122.04582597,204.16,204.12,2.78]
[1755975079956,122.04582597,204.16,204.13,4.43466928]
[1755975080249,122.04582597,204.16,204.11,4.9008]
[1755975080250,118.82,204.16,204.14,7.21466928]
[1755975080444,122.04582597,204.16,204.14,4.43466928]
[1755975080645,122.04582597,204.16,204.15,4.43423391]
[1755975084957,3.22582597,204.16,204.15,4.43423391]
[1755975085348,122.04582597,204.16,204.15,4.43423391]
[1755975085658,118.82,204.16,204.15,4.43423391]
[1755975085858,8.12542597,204.17,204.15,4.43423391]
[1755975086057,8.12542597,204.17,204.16,4.43423391]
[1755975086254,126.94542597,204.17,204.16,4.43423391]
[1755975090455,126.94542597,204.17,204.16,4.43321712]
[1755975091861,122.04582597,204.17,204.16,4.43321712]
[1755975093861,122.04582597,204.17,204.16,4.43346759]
[1755975094057,118.82,204.17,204.16,4.43346759]
[1755975094363,122.04582597,204.17,204.16,4.43346759]
[1755975094965,3.22582597,204.17,204.16,4.43346759]
[1755975095357,122.04582597,204.17,204.16,4.43346759]
[1755975095969,3.22582597,204.17,204.16,4.43346759]
[1755975096169,122.04582597,204.17,204.16,4.43346759]
[1755975097068,3.22582597,204.17,204.16,4.43346759]
[1755975097266,122.02582597,204.17,204.16,4.43346759]
[1755975098469,118.8,204.17,204.16,4.43346759]
[1755975098672,118.8,204.17,204.16,7.11346759]
[1755975098965,118.8,204.17,204.16,4.43346759]
[1755975100368,118.8,204.17,204.16,4.45672947]
[1755975100873,118.8,204.17,204.16,4.45676847]
[1755975101573,3.22582597,204.18,204.16,4.45676847]
[1755975101776,3.22582597,204.18,204.17,4.45676847]
[1755975101970,122.02582597,204.18,204.17,4.45676847]
[1755975102869,118.8,204.18,204.17,4.45676847]
[1755975110181,4.8995,204.17,204.11,2.68]
[1755975110375,3.22582597,204.16,204.12,11.10300207]
[1755975110679,118.78,204.15,204.13,7.13639244]
[1755975110879,118.78,204.15,204.1,64.00753531]
[1755975111079,118.78,204.15,204.11,11.10342299]
[1755975111382,118.78,204.15,204.12,4.456637]
[1755975111583,118.78,204.15,204.13,4.456637]
[1755975111782,118.78,204.15,204.14,4.456637]
[1755975119983,4.9003,204.14,204.09,2.68]
[1755975120287,122.00582597,204.13,204.11,2.68]
[1755975120481,122.00582597,204.13,204.12,4.44806711]
[1755975120677,122.00582597,204.13,204.12,4.44767582]
[1755975121283,3.22582597,204.13,204.12,4.44767582]
[1755975121584,122.00582597,204.13,204.12,4.44767582]
[1755975121790,3.22582597,204.13,204.12,4.44767582]
[1755975122090,122.00582597,204.13,204.12,4.44767582]
[1755975122482,3.22582597,204.13,204.12,4.44767582]
[1755975122682,122.00582597,204.13,204.12,4.44767582]
[1755975122884,3.22582597,204.13,204.12,4.44767582]
[1755975123290,122.00582597,204.13,204.12,4.44767582]
[1755975125687,122.00582597,204.13,204.12,4.44967177]
[1755975129093,122.00582597,204.13,204.12,4.44748814]
[1755975130093,3.22582597,204.13,204.12,4.44748814]
[1755975130295,122.00582597,204.13,204.12,4.44748814]
[1755975134193,3.22582597,204.13,204.12,4.44748814]
[1755975134394,121.98582597,204.13,204.12,4.44748814]
[1755975138803,121.98582597,204.13,204.07,7.5217]
[1755975139000,121.98582597,204.13,204.09,2.62]
[1755975139206,121.98582597,204.13,204.1,7.06602204]
[1755975139500,121.98582597,204.13,204.11,4.44605866]
[1755975139701,121.98582597,204.13,204.12,4.44566502]
[1755975143403,121.98582597,204.13,204.12,6.502e-05]
[1755975143603,126.88642597,204.13,204.07,2.62]
[1755975143799,118.76,204.12,204.07,2.62]
[1755975144099,118.76,204.12,204.05,3.22582597]
[1755975144302,118.76,204.11,204.09,2.62]
[1755975148904,118.76,204.11,204.07,2.62]
[1755975151811,118.76,204.11,204.06,8.12782597]
[1755975152005,118.76,204.11,204.06,4.902]
[1755975152307,121.98582597,204.11,204.06,7.522]
[1755975152502,121.98582597,204.11,204.06,4.902]
[1755975152708,121.98582597,204.11,204.07,2.62]
[1755975154201,118.74,204.1,204.07,2.62]
[1755975155408,118.74,204.1,204.08,4.35815872]
[1755975155598,118.74,204.1,204.09,4.35815872]
[1755975158407,3.22582597,204.11,204.09,4.35815872]
[1755975158605,118.74,204.1,204.07,2.62]
[1755975158807,118.74,204.1,204.08,4.35988996]
[1755975159113,118.74,204.1,204.07,2.62]
[1755975159305,118.74,204.1,204.08,4.35988996]
[1755975159505,118.74,204.1,204.09,4.35988996]
[1755975168626,118.74,204.1,204.09,4.35631455]
[1755975169728,8.12682597,204.11,204.09,4.35631455]
[1755975169918,8.12682597,204.11,204.1,4.35631455]
[1755975170120,126.84682597,204.11,204.1,4.35631455]
[1755975175331,4.9014,204.09,204.03,7.5426]
[1755975175532,118.72,204.08,204.05,2.64]
[1755975175721,3.22582597,204.06,203.97,7.798e-05]
[1755975175927,3.22582597,203.98,203.88,2.64]
[1755975176229,3.22582597,203.91,203.89,3.8131993]
[1755975176431,3.22582597,203.91,203.88,2.64]
[1755975176630,119.92,203.9,203.88,2.64]
[1755975176831,4.9053,203.93,203.78,24.5433]
[1755975176832,3.22582597,203.93,203.89,2.64]
[1755975177126,3.22582597,203.93,203.8,24.5411]
[1755975177334,39.2138,204.04,203.8,24.5411]
[1755975177335,123.12582597,203.92,203.86,2.64]
[1755975177529,119.94,203.91,203.85,3.22582597]
[1755975177828,119.94,203.91,203.88,2.64]
[1755975178224,119.94,203.91,203.85,3.22582597]
[1755975178526,3.22582597,203.92,203.8,24.5411]
[1755975178527,119.92,203.9,203.83,2.64]
[1755975178727,5.05695333,203.96,203.83,2.64]
[1755975178930,119.92,203.95,203.83,2.64]
[1755975179632,119.92,203.95,203.86,2.64]
[1755975179830,119.9,203.94,203.89,2.64]
[1755975180034,119.9,203.95,203.89,2.64]
[1755975182438,119.9,203.95,203.89,7.5461]
[1755975184731,119.94,203.95,203.89,7.5461]
[1755975186938,119.94,203.95,203.91,7.4456]
[1755975188541,9.96025333,204.01,203.91,7.4456]
[1755975188742,119.9,203.96,203.91,7.4456]
[1755975189340,119.86,203.96,203.91,7.4456]
[1755975191638,119.84,203.97,203.91,7.4456]
[1755975191843,119.82,203.97,203.91,7.4456]
[1755975196840,119.82,203.97,203.88,9.96315333]
[1755975197041,119.82,203.97,203.88,4.9062]
[1755975197237,119.82,203.97,203.86,5.05695333]
[1755975197644,5.05695333,203.98,203.86,5.05695333]
[1755975197845,119.82,203.97,203.86,5.05695333]
[1755975198450,3.23579868,203.95,203.88,3.23579868]
[1755975198740,3.23579868,203.99,203.92,3.23579868]
[1755975198945,119.8,203.98,203.92,3.23579868]
[1755975199350,123.03579868,203.98,203.92,3.23579868]
[1755975199843,123.03579868,203.98,203.9,3.23579868]
[1755975200548,127.93979868,203.98,203.9,8.14159868]
[1755975201851,3.23579868,203.96,203.9,4.9058]
[1755975202247,3.23579868,203.96,203.88,8.14219868]
[1755975202748,119.82,203.95,203.88,8.14219868]
[1755975203948,119.8,203.95,203.9,3.23579868]
[1755975204152,119.8,203.95,203.9,5.77579868]
[1755975204753,4.9044,203.97,203.9,5.77579868]
[1755975204956,119.78,203.96,203.9,5.77579868]
[1755975205452,4.9044,203.97,203.9,5.77579868]
[1755975205652,119.76,203.95,203.9,5.77579868]
[1755975209355,119.76,203.95,203.9,2.54]
[1755975210051,119.7,203.95,203.9,2.54]
[1755975212758,119.7,203.95,203.87,10.68239868]
[1755975215062,122.93579868,203.95,203.88,4.9063]
[1755975217160,127.84069868,203.95,203.88,4.9063]
[1755975219455,3.23579868,203.93,203.87,3.23579868]
[1755975219765,3.23579868,203.93,203.86,7.6468]
[1755975219957,119.62,203.92,203.86,7.6468]
[1755975220563,119.62,203.92,203.87,3.84081472]
[1755975220761,119.62,203.92,203.88,3.84081472]
[1755975221062,119.62,203.92,203.89,3.84081472]
[1755975221265,119.62,203.92,203.9,3.84081472]
[1755975221463,119.62,203.92,203.86,4.9068]
[1755975222164,119.62,203.92,203.87,4.9065]
[1755975227466,124.5256,203.92,203.85,85.77081477]
[1755975227962,124.5256,203.92,203.75,24.5475]
[1755975227963,3.23579868,203.9,203.83,4.9076]
[1755975228167,3.23579868,203.88,203.78,2.74]
[1755975228461,3.23579868,203.88,203.82,8.14349868]
[1755975228662,119.64,203.87,203.83,6.54382218]
[1755975228971,119.68,203.87,203.84,3.80382218]
[1755975229163,119.68,203.87,203.85,3.80382218]
[1755975229463,119.68,203.87,203.86,3.80382218]
[1755975230569,119.7,203.87,203.86,3.80382218]
[1755975230969,119.68,203.87,203.86,3.80382218]
[1755975233163,3.23579868,203.89,203.82,10.88349868]
[1755975233367,3.23579868,203.89,203.83,3.80172524]
[1755975233568,119.66,203.88,203.84,3.80172524]
[1755975233767,119.66,203.88,203.85,3.80172524]
[1755975233970,119.66,203.88,203.86,3.80172524]
[1755975234170,119.66,203.88,203.82,8.14349868]
[1755975234370,119.66,203.88,203.83,3.80056055]
[1755975234568,119.66,203.88,203.84,3.80056055]
[1755975234766,119.66,203.88,203.85,3.80056055]
[1755975235067,119.66,203.88,203.83,2.74]
[1755975235268,119.66,203.88,203.84,3.80023772]
[1755975235571,119.66,203.88,203.85,3.80023772]
[1755975235773,122.89579868,203.88,203.83,2.74]
[1755975235973,122.89579868,203.88,203.84,3.79987905]
[1755975236167,119.62,203.87,203.85,3.79987905]
[1755975236362,119.62,203.87,203.83,2.74]
[1755975236567,119.62,203.87,203.84,3.79964206]
[1755975236860,119.62,203.87,203.83,2.74]
[1755975237064,119.62,203.87,203.84,3.79964206]
[1755975237264,119.62,203.87,203.83,7.6475]
[1755975237465,119.62,203.87,203.84,3.79941084]
[1755975237662,119.62,203.87,203.83,7.6475]
[1755975237862,119.62,203.87,203.84,3.79945664]
[1755975238062,119.62,203.87,203.83,7.6475]
[1755975238262,119.62,203.87,203.84,3.8001587]
[1755975238472,119.62,203.87,203.83,7.6475]
[1755975238774,119.62,203.87,203.82,3.23579868]
[1755975238775,53.71786001,203.91,203.84,9.77582508]
[1755975238975,119.62,203.88,203.86,2.74]
[1755975239470,119.62,203.88,203.84,3.23579868]
[1755975239672,119.6,203.9,203.87,2.74]
[1755975241475,3.23579868,203.93,203.87,7.6465]
[1755975241664,119.62,203.92,203.88,3.79939966]
[1755975241971,119.62,203.92,203.87,7.6465]
[1755975242170,119.62,203.92,203.88,3.79939966]
[1755975242370,119.62,203.92,203.87,7.6465]
[1755975242571,119.62,203.92,203.88,3.79906515]
[1755975242775,119.62,203.92,203.87,7.6465]
[1755975243075,119.62,203.92,203.88,3.79906515]
[1755975243276,119.62,203.92,203.87,7.6465]
[1755975243475,119.62,203.92,203.88,3.79937533]
[1755975243687,119.62,203.92,203.87,7.6465]
[1755975243874,119.62,203.92,203.88,3.79938309]
[1755975244177,119.62,203.92,203.87,7.6465]
[1755975244373,119.62,203.92,203.88,3.79983703]
[1755975244677,119.62,203.92,203.89,3.79983703]
[1755975244878,119.62,203.92,203.87,7.6465]
[1755975245072,119.62,203.92,203.88,3.79998399]
[1755975245272,119.62,203.92,203.89,3.79998399]
[1755975245575,119.62,203.92,203.87,7.6465]
[1755975245777,119.62,203.92,203.88,3.80062179]
[1755975246080,3.23579868,203.93,203.89,3.80062179]
[1755975246276,119.54,203.92,203.87,7.6465]
[1755975246475,119.54,203.92,203.88,3.80075072]
[1755975246678,119.54,203.92,203.89,3.80075072]
[1755975246879,119.54,203.92,203.87,7.6465]
[1755975247082,119.54,203.92,203.88,3.80128552]
[1755975247382,119.54,203.92,203.89,3.80128552]
[1755975247679,119.54,203.92,203.87,7.6465]
[1755975247874,119.54,203.92,203.88,3.80141665]
[1755975248078,119.54,203.92,203.89,3.80141665]
[1755975248278,119.54,203.92,203.87,7.6465]
[1755975248481,119.54,203.92,203.88,3.8015396]
[1755975248685,119.54,203.92,203.89,3.8015396]
[1755975248879,119.54,203.92,203.87,7.6465]
[1755975249083,119.54,203.92,203.88,3.80104761]
[1755975249380,119.54,203.92,203.89,3.80104761]
[1755975249580,119.54,203.92,203.87,7.6465]
[1755975249781,119.54,203.92,203.88,3.80113673]
[1755975250079,119.54,203.92,203.87,7.6465]
[1755975250276,119.54,203.92,203.88,3.80125627]
[1755975250479,119.54,203.92,203.87,7.6465]
[1755975250680,119.54,203.92,203.88,3.80128247]
[1755975250877,119.54,203.92,203.87,7.6465]
[1755975251084,119.54,203.92,203.88,3.80128247]
[1755975251382,119.54,203.92,203.87,7.6465]
[1755975251577,119.54,203.92,203.88,3.80151411]
[1755975251776,119.54,203.92,203.87,7.6465]
[1755975252077,119.54,203.92,203.88,11.36781411]
[1755975252277,119.54,203.92,203.88,7.5663]
[1755975252472,119.54,203.92,203.85,2.66]
[1755975252686,119.54,203.92,203.86,3.8017558]
[1755975252877,119.54,203.92,203.87,3.8017558]
[1755975253081,119.54,203.92,203.88,3.8017558]
[1755975253376,119.54,203.92,203.85,5.89579868]
[1755975253576,119.54,203.92,203.86,8.70881246]
[1755975253781,119.54,203.92,203.87,3.80201246]
[1755975254077,119.54,203.92,203.88,3.80201246]
[1755975254279,119.54,203.92,203.86,4.9068]
[1755975254584,8.14119868,203.93,203.87,3.80228795]
[1755975254585,119.42,203.91,203.87,3.80228795]
[1755975254881,119.42,203.91,203.88,3.80228795]
[1755975255081,119.42,203.91,203.89,3.80228795]
[1755975255281,8.14119868,203.93,203.86,7.5668]
[1755975255480,119.4,203.9,203.87,3.80257319]
[1755975255683,119.4,203.9,203.88,3.80257319]
[1755975255883,119.4,203.9,203.89,3.80257319]
[1755975257885,119.4,203.9,203.86,7.5668]
[1755975258083,119.4,203.9,203.87,3.8028788]
[1755975258284,119.4,203.9,203.88,3.8028788]
[1755975258484,119.4,203.9,203.89,3.8028788]
[1755975258680,8.14119868,203.93,203.89,3.8028788]
[1755975258881,119.34,203.92,203.86,7.5668]
[1755975259081,119.34,203.92,203.87,3.80309811]
[1755975259284,119.34,203.92,203.88,3.80309811]
[1755975259482,119.34,203.91,203.89,3.80309811]
[1755975259681,119.34,203.91,203.9,3.80309811]
[1755975260887,8.14119868,203.93,203.9,3.80309811]
[1755975261088,119.34,203.91,203.87,4.9065]
[1755975261384,119.32,203.9,203.88,3.80358833]
[1755975261687,119.32,203.9,203.89,3.80358833]
[1755975261878,119.3,203.9,203.89,3.80358833]
[1755975262284,8.14119868,203.93,203.89,3.80358833]
[1755975262483,119.3,203.92,203.9,3.80358833]
[1755975262685,8.14119868,203.93,203.91,3.80358833]
[1755975262887,119.3,203.92,203.87,4.9065]
[1755975263185,119.3,203.92,203.88,3.80329842]
[1755975263383,119.3,203.92,203.89,3.80329842]
[1755975263686,119.3,203.92,203.9,3.80329842]
[1755975263888,119.3,203.92,203.91,3.80329842]
[1755975266183,119.3,203.92,203.88,4.9063]
[1755975266383,119.3,203.92,203.89,3.80336542]
[1755975266583,119.3,203.92,203.9,3.80336542]
[1755975266784,119.3,203.92,203.88,4.9063]
[1755975267088,119.3,203.92,203.89,3.8034467]
[1755975267285,119.3,203.92,203.9,3.8034467]
[1755975267486,119.3,203.92,203.88,4.9063]
[1755975267686,119.3,203.92,203.89,3.8032882]
[1755975267889,119.3,203.92,203.9,3.8032882]
[1755975268080,119.3,203.92,203.88,4.9063]
[1755975268383,119.3,203.92,203.89,3.80358522]
[1755975268584,119.3,203.92,203.9,3.80358522]
[1755975268891,119.3,203.92,203.88,4.9063]
[1755975269187,119.3,203.92,203.89,3.80349252]
[1755975269488,119.3,203.92,203.9,3.80349252]
[1755975269693,119.3,203.92,203.88,4.9063]
[1755975269890,122.53579868,203.92,203.89,3.8033493]
[1755975270188,122.53579868,203.92,203.9,3.8033493]
[1755975270389,122.53579868,203.92,203.88,4.9063]
[1755975270590,122.53579868,203.92,203.89,3.80321314]
[1755975270791,122.53579868,203.92,203.9,3.80321314]
[1755975270982,122.53579868,203.92,203.88,4.9063]
[1755975271188,122.53579868,203.92,203.89,3.80321314]
[1755975271390,122.53579868,203.92,203.88,4.9063]
[1755975271391,122.53579868,203.92,203.9,3.80321314]
[1755975271588,122.53579868,203.92,203.88,4.9063]
[1755975271788,3.23579868,203.92,203.89,3.80308373]
[1755975271987,119.18,203.91,203.9,3.80308373]
[1755975272992,119.18,203.91,203.88,4.9063]
[1755975273190,3.23579868,203.92,203.89,3.80241569]
[1755975273395,119.18,203.9,203.88,4.9063]
[1755975273591,119.18,203.9,203.89,3.80236928]
[1755975276197,119.14,203.9,203.89,3.80236928]
[1755975277995,3.23579868,203.92,203.89,3.80236928]
[1755975278201,119.12,203.91,203.9,3.80236928]
[1755975279999,3.23579868,203.92,203.9,3.80236928]
[1755975280301,3.23579868,203.92,203.91,3.80236928]
[1755975280603,119.08,203.92,203.91,3.80236928]
[1755975280998,3.23579868,203.94,203.91,3.80236928]
[1755975281198,119.08,203.93,203.88,4.9063]
[1755975281406,119.08,203.93,203.89,3.80388585]
[1755975281703,119.08,203.93,203.9,3.80388585]
[1755975281903,119.08,203.92,203.91,3.80388585]
[1755975282104,3.23579868,203.94,203.91,3.80388585]
[1755975282304,119.06,203.93,203.89,4.9061]
[1755975282499,119.06,203.93,203.9,3.80443994]
[1755975282802,119.06,203.93,203.91,3.80443994]
[1755975283004,119.06,203.93,203.92,3.80443994]
[1755975283598,122.29579868,203.93,203.92,3.805649]
[1755975285208,3.23579868,203.93,203.92,3.805649]
[1755975285406,122.27579868,203.93,203.92,3.80607506]
[1755975287103,3.23579868,203.93,203.92,3.80607506]
[1755975287307,122.27579868,203.93,203.92,3.80607506]
[1755975289510,122.27579868,203.93,203.89,4.9061]
[1755975289705,119.04,203.92,203.9,3.80693466]
[1755975289904,119.04,203.92,203.91,3.80693466]
[1755975291011,3.23579868,203.93,203.91,3.80693466]
[1755975291308,3.23579868,203.93,203.92,3.80693466]
[1755975291508,122.27579868,203.93,203.92,3.80693466]
[1755975292712,3.23579868,203.93,203.89,4.9061]
[1755975293009,119.04,203.92,203.9,3.80639806]
[1755975293203,119.04,203.92,203.91,3.80639806]
[1755975296410,3.23579868,203.94,203.91,3.80639806]
[1755975296712,119.04,203.93,203.92,3.80639806]
[1755975297812,119.04,203.93,203.89,4.9061]
[1755975298313,119.04,203.93,203.89,7.6061]
[1755975322628,119.02,203.92,203.89,7.6061]
[1755975322931,119.02,203.91,203.9,2.64]
[1755975324531,119.02,203.91,203.9,7.5459]
[1755975324927,49.7568409,203.95,203.9,2.64]
[1755975325232,119.02,203.94,203.91,2.64]
[1755975326528,119.02,203.94,203.91,7.5456]
[1755975326730,49.7568409,203.95,203.89,3.23579868]
[1755975326930,0.85341181,203.99,203.92,2.64]
[1755975326931,119.02,203.94,203.92,2.64]
[1755975327624,119.02,203.95,203.93,7.5451]
[1755975327833,119.02,203.95,203.94,3.80225504]
[1755975331035,119.02,203.95,203.94,3.80074776]
[1755975335139,3.23579868,203.98,203.94,3.80074776]
[1755975335338,119.0,203.97,203.93,7.5451]
[1755975335539,3.23579868,203.98,203.94,3.80149154]
[1755975335731,119.0,203.97,203.93,7.5451]
[1755975335937,119.0,203.97,203.94,3.80149154]
[1755975336138,119.0,203.97,203.93,7.5451]
[1755975336340,119.0,203.97,203.94,3.80108977]
[1755975336539,119.0,203.97,203.93,7.5451]
[1755975336739,119.0,203.97,203.94,3.80108977]
[1755975336940,119.0,203.97,203.93,7.5451]
[1755975337140,119.0,203.97,203.94,3.80093874]
[1755975337339,119.0,203.97,203.93,7.5451]
[1755975337543,119.0,203.97,203.94,3.80092301]
[1755975337744,119.0,203.97,203.93,7.5451]
[1755975338044,119.0,203.97,203.94,3.80092301]
[1755975338241,119.0,203.97,203.93,7.5451]
[1755975338441,119.0,203.97,203.94,3.80071412]
[1755975338640,119.0,203.97,203.93,7.5451]
[1755975338843,119.0,203.97,203.94,3.80086513]
[1755975339041,119.0,203.97,203.93,4.9051]
[1755975340743,3.23579868,203.98,203.93,4.9051]
[1755975341047,3.23579868,203.98,203.94,3.85318408]
[1755975341237,3.23579868,203.98,203.95,3.85318408]
[1755975341238,122.21579868,203.98,203.95,3.85318408]
[1755975341441,122.21579868,203.98,203.93,4.9051]
[1755975341442,122.21579868,203.98,203.96,3.85318408]
[1755975341746,122.21579868,203.98,203.93,4.9051]
[1755975341946,122.21579868,203.98,203.94,3.85252796]
[1755975342144,122.21579868,203.98,203.95,3.85252796]
[1755975342345,122.21579868,203.98,203.93,4.9051]
[1755975342647,122.21579868,203.98,203.94,3.79878102]
[1755975342842,122.21579868,203.98,203.95,3.79878102]
[1755975343048,122.21579868,203.98,203.93,4.9051]
[1755975343049,122.21579868,203.98,203.93,7.6851]
[1755975343345,122.21579868,203.98,203.94,3.79842966]
[1755975343548,3.23579868,203.98,203.95,3.79842966]
[1755975343739,122.21579868,203.98,203.94,7.6848]
[1755975343943,122.21579868,203.98,203.95,3.79842966]
[1755975344143,122.21579868,203.98,203.94,7.6848]
[1755975344343,122.21579868,203.98,203.95,3.79812787]
[1755975344543,122.21579868,203.98,203.94,7.6848]
[1755975344847,122.21579868,203.98,203.95,3.79782601]
[1755975345046,122.21579868,203.98,203.94,7.6848]
[1755975345248,122.21579868,203.98,203.95,3.79751987]
[1755975345546,122.21579868,203.98,203.94,7.6848]
[1755975345743,122.21579868,203.98,203.95,3.79751987]
[1755975345948,122.21579868,203.98,203.94,7.6848]
[1755975346149,122.21579868,203.98,203.95,3.79751987]
[1755975346348,122.21579868,203.98,203.94,7.6848]
[1755975346544,122.21579868,203.98,203.95,3.79729616]
[1755975346745,122.21579868,203.98,203.94,7.6848]
[1755975346950,122.21579868,203.98,203.95,3.79729616]
[1755975347150,122.21579868,203.98,203.94,7.6848]
[1755975347452,122.21579868,203.98,203.95,3.79710899]
[1755975347748,122.21579868,203.98,203.94,7.6848]
[1755975347948,122.21579868,203.98,203.95,3.79710899]
[1755975348143,122.21579868,203.98,203.94,7.6848]
[1755975348344,122.21579868,203.98,203.95,3.79695613]
[1755975348647,122.21579868,203.98,203.94,7.6848]
[1755975348850,122.21579868,203.98,203.95,3.79710692]
[1755975349051,122.21579868,203.98,203.94,7.6848]
[1755975349249,122.21579868,203.98,203.95,3.79711513]
[1755975349450,122.21579868,203.98,203.94,7.6848]
[1755975349650,122.21579868,203.98,203.95,3.79698669]
[1755975349955,122.21579868,203.98,203.94,7.6848]
[1755975353056,122.21579868,203.98,203.95,4.9046]
[1755975353751,122.21579868,203.98,203.94,2.78]
[1755975353752,118.98,203.98,203.96,4.9043]